[Event "AUT Bundesliga 2022-23"]
[Site "Jenbach"]
[Date "2022.11.05"]
[Round "3.32"]
[White "Horvath, Dominik"]
[Black "Esipenko, Andrey"]
[Result "1/2-1/2"]
[ECO "B14"]
[WhiteElo "2505"]
[BlackElo "2668"]
[Annotator "ChessBase"]
[PlyCount "59"]
[EventDate "2022.11.03"]
[EventType "team-tourn"]
[EventCountry "AUT"]
[SourceTitle "playchess.com"]
[Source "ChessBase"]
[SourceQuality "1"]
[TimeControl "40/5400+30:1800+30"]

1. e4 {[%emt 0:00:05]} c6 {[%emt 0:00:25]} 2. d4 {[%emt 0:00:10]} d5 {[%emt 0:00:11]} 3. exd5 {[%emt 0:00:07]} cxd5 {[%emt 0:00:07]} 4. c4 {[%emt 0:00:02]} Nf6 {[%emt 0:01:23]} 5. Nc3 {[%emt 0:00:05]} e6 {[%emt 0:04:52]} 6. Nf3 {[%emt 0:00:55]} Be7 {[%emt 0:03:23]} 7. Bd3 {[%emt 0:01:50]} O-O {[%emt 0:00:58]} 8. O-O {[%emt 0:00:53]} Nc6 {[%emt 0:05:06]} 9. a3 {[%emt 0:02:15]} dxc4 {[%emt 0:04:50]} 10. Bxc4 {[%emt 0:00:04]} Nd5 {[%emt 0:00:06]} 11. Bxd5 {[%emt 0:04:42]} exd5 {[%emt 0:01:50]} 12. Qb3 {[%emt 0:00:06]} Bf6 {[%emt 0:15:06]} 13. Nxd5 {[%emt 0:02:13]} Nxd4 {[%emt 0:01:07]} 14. Nxf6+ {[%emt 0:01:11]} Qxf6 {[%emt 0:00:06]} 15. Nxd4 {[%emt 0:00:03]} Qxd4 {[%emt 0:00:09]} 16. Be3 {[%emt 0:00:08]} Qe4 {[%emt 0:00:24]} 17. Rac1 {[%emt 0:00:21]} Be6 {[%emt 0:00:44]} 18. Qc2 {[%emt 0:00:03]} Bd5 {[%emt 0:01:37]} 19. Qxe4 {[%emt 0:00:05]} Bxe4 {[%emt 0:00:05]} 20. Rfd1 {[%emt 0:00:07]} Bc6 {[%emt 0:00:18]} 21. Bc5 {[%emt 0:00:29]} Rfe8 {[%emt 0:00:09]} 22. Re1 {[%emt 0:00:04]} a5 {[%emt 0:00:40]} 23. f3 {[%emt 0:00:04]} f6 {[%emt 0:00:21]} 24. Kf2 {[%emt 0:00:05]} Kf7 {[%emt 0:00:26]} 25. Rxe8 {[%emt 0:00:07]} Rxe8 {[%emt 0:00:05]} 26. Re1 {[%emt 0:00:04]} Rxe1 {[%emt 0:00:09]} 27. Kxe1 {[%emt 0:00:02]} a4 {[%emt 0:00:12]} 28. Kd2 {[%emt 0:00:06]} g5 {[%emt 0:00:07]} 29. Ke3 {[%emt 0:00:05]} h5 {[%emt 0:00:06]} 30. Bb6 {[%emt 0:00:05]} 1/2-1/2

[Event "AUT Bundesliga 2022-23"]
[Site "Jenbach"]
[Date "2022.11.05"]
[Round "3.33"]
[White "Maghsoodloo, Parham"]
[Black "Korpa, Bence"]
[Result "1-0"]
[ECO "E73"]
[WhiteElo "2721"]
[BlackElo "2496"]
[Annotator "ChessBase"]
[PlyCount "139"]
[EventDate "2022.11.03"]
[EventType "team-tourn"]
[EventCountry "AUT"]
[SourceTitle "playchess.com"]
[Source "ChessBase"]
[SourceQuality "1"]
[TimeControl "40/5400+30:1800+30"]

1. d4 {[%emt 0:00:49]} Nf6 {[%emt 0:00:12]} 2. c4 {[%emt 0:00:05]} g6 {[%emt 0:00:12]} 3. Nc3 {[%emt 0:02:18]} Bg7 {[%emt 0:00:09]} 4. e4 {[%emt 0:00:11]} d6 {[%emt 0:00:07]} 5. Be2 {[%emt 0:01:03]} O-O {[%emt 0:00:19]} 6. Bg5 {[%emt 0:00:05]} c5 {[%emt 0:00:56]} 7. d5 {[%emt 0:00:35]} e6 {[%emt 0:00:45]} 8. Nf3 {[%emt 0:00:20]} exd5 {[%emt 0:00:31]} 9. cxd5 {[%emt 0:03:29]} h6 {[%emt 0:06:59]} 10. Bh4 {[%emt 0:00:37]} a6 {[%emt 0:01:17]} 11. a4 {[%emt 0:00:08]} g5 {[%emt 0:01:03]} 12. Bg3 {[%emt 0:00:06]} Nh5 {[%emt 0:00:21]} 13. Nd2 {[%emt 0:00:10]} Nxg3 {[%emt 0:00:14]} 14. hxg3 {[%emt 0:00:05]} Nd7 {[%emt 0:16:56]} 15. Nc4 {[%emt 0:00:05]} Ne5 {[%emt 0:02:25]} 16. Ne3 {[%emt 0:01:41]} Re8 {[%emt 0:08:06]} 17. O-O {[%emt 0:09:28]} Rb8 {[%emt 0:02:27]} 18. Re1 {[%emt 0:05:54]} Bd7 {[%emt 0:05:37]} 19. a5 {[%emt 0:07:36]} Bc8 {[%emt 0:12:10]} 20. Qd2 {[%emt 0:07:29]} b5 {[%emt 0:05:31]} 21. axb6 {[%emt 0:00:15]} Rxb6 {[%emt 0:02:34]} 22. Ra2 {[%emt 0:08:48]} Re7 {[%emt 0:05:53]} 23. Rea1 {[%emt 0:01:39]} Ra7 {[%emt 0:00:11]} 24. Qd1 {[%emt 0:07:12]} Qe8 {[%emt 0:16:27]} 25. Qf1 {[%emt 0:05:33]} Bd7 {[%emt 0:03:43]} 26. Bxa6 {[%emt 0:06:33]} Qb8 {[%emt 0:00:26]} 27. Qc1 {[%emt 0:09:02]} Ng6 {[%emt 0:03:32]} 28. Bf1 {[%emt 0:09:17]} Rbb7 {[%emt 0:02:34]} 29. Nc4 {[%emt 0:03:38]} Rxa2 {[%emt 0:01:30]} 30. Rxa2 {[%emt 0:00:02]} Ne5 {[%emt 0:00:34]} 31. Qa1 {[%emt 0:00:45]} Kh7 {[%emt 0:00:07]} 32. Ra8 {[%emt 0:01:01]} Qc7 {[%emt 0:00:06]} 33. Ne3 {[%emt 0:00:20]} c4 {[%emt 0:00:29]} 34. Ncd1 {[%emt 0:03:22]} Nd3 {[%emt 0:00:58]} 35. Qb1 {[%emt 0:00:24]} Rb3 {[%emt 0:00:56]} 36. Qc2 {[%emt 0:00:18]} Bb5 {[%emt 0:00:38]} 37. Bxd3 {[%emt 0:04:38]} Rxd3 {[%emt 0:00:06]} 38. Qe2 {[%emt 0:01:28]} Qb7 {[%emt 0:00:44]} 39. Ra2 {[%emt 0:00:17]} Bd7 {[%emt 0:01:25]} 40. Ra1 {[%emt 0:00:00]} Rd4 {[%emt 0:00:00]} 41. Qf3 {[%emt 0:05:48]} Kg8 {[%emt 0:07:45]} 42. Nf5 {[%emt 0:01:12]} Bxf5 {[%emt 0:02:32]} 43. Qxf5 {[%emt 0:00:11]} Rd2 {[%emt 0:02:57]} 44. Ne3 {[%emt 0:01:52]} Bd4 {[%emt 0:01:54]} 45. Ng4 {[%emt 0:02:31]} Kg7 {[%emt 0:00:35]} 46. e5 {[%emt 0:04:30]} Bxe5 {[%emt 0:10:20]} 47. Nxe5 {[%emt 0:00:14]} Rxd5 {[%emt 0:00:20]} 48. Qd7 {[%emt 0:00:46]} Qxd7 {[%emt 0:00:09]} 49. Nxd7 {[%emt 0:00:04]} Rb5 {[%emt 0:00:30]} 50. Ra6 {[%emt 0:03:13]} Rxb2 {[%emt 0:01:18]} 51. Rxd6 {[%emt 0:00:05]} c3 {[%emt 0:00:11]} 52. Rc6 {[%emt 0:00:30]} Rd2 {[%emt 0:00:46]} 53. Ne5 {[%emt 0:00:39]} c2 {[%emt 0:00:00]} 54. Kh2 {[%emt 0:00:03]} Rxf2 {[%emt 0:00:00]} 55. Nf3 {[%emt 0:01:31]} f6 {[%emt 0:01:48]} 56. Nd4 {[%emt 0:04:03]} h5 {[%emt 0:00:44]} 57. Nxc2 {[%emt 0:00:49]} Rf1 {[%emt 0:02:09]} 58. Ne3 {[%emt 0:03:12]} Re1 {[%emt 0:00:30]} 59. Nd5 {[%emt 0:00:24]} Rf1 {[%emt 0:00:08]} 60. Rc3 {[%emt 0:02:22]} Rd1 {[%emt 0:01:09]} 61. Rc7+ {[%emt 0:03:04]} Kg6 {[%emt 0:00:14]} 62. Rd7 {[%emt 0:00:13]} Re1 {[%emt 0:00:25]} 63. Rd6 {[%emt 0:00:07]} Rf1 {[%emt 0:00:08]} 64. g4 {[%emt 0:01:17]} hxg4 {[%emt 0:01:35]} 65. Kg3 {[%emt 0:00:08]} Kf7 {[%emt 0:01:28]} 66. Kxg4 {[%emt 0:00:17]} Kg6 {[%emt 0:00:07]} 67. Kh3 {[%emt 0:01:47]} Rh1+ {[%emt 0:01:47]} 68. Kg3 {[%emt 0:00:01]} Rf1 {[%emt 0:00:08]} 69. Kh2 {[%emt 0:00:03]} Kg7 {[%emt 0:01:18]} 70. g4 {[%emt 0:00:14]} 1-0

[Event "AUT Bundesliga 2022-23"]
[Site "Jenbach"]
[Date "2022.11.05"]
[Round "3.34"]
[White "Nagy, Gabor"]
[Black "Moussard, Jules"]
[Result "1/2-1/2"]
[ECO "A28"]
[WhiteElo "2488"]
[BlackElo "2686"]
[Annotator "ChessBase"]
[PlyCount "129"]
[EventDate "2022.11.03"]
[EventType "team-tourn"]
[EventCountry "AUT"]
[SourceTitle "playchess.com"]
[Source "ChessBase"]
[SourceQuality "1"]
[TimeControl "40/5400+30:1800+30"]

1. c4 {[%emt 0:00:20]} e5 {[%emt 0:00:10]} 2. Nc3 {[%emt 0:00:22]} Nf6 {[%emt 0:00:05]} 3. Nf3 {[%emt 0:00:47]} Nc6 {[%emt 0:00:09]} 4. d3 {[%emt 0:00:56]} d5 {[%emt 0:02:40]} 5. cxd5 {[%emt 0:00:13]} Nxd5 {[%emt 0:00:06]} 6. e4 {[%emt 0:00:38]} Nxc3 {[%emt 0:08:01]} 7. bxc3 {[%emt 0:00:27]} Bc5 {[%emt 0:00:19]} 8. Be2 {[%emt 0:01:41]} O-O {[%emt 0:02:20]} 9. O-O {[%emt 0:00:48]} Re8 {[%emt 0:07:06]} 10. Qc2 {[%emt 0:07:20]} Bg4 {[%emt 0:14:39]} 11. h3 {[%emt 0:02:36]} Bh5 {[%emt 0:01:07]} 12. Rb1 {[%emt 0:04:21]} Bb6 {[%emt 0:01:55]} 13. g4 {[%emt 0:06:21]} Bg6 {[%emt 0:00:18]} 14. Kg2 {[%emt 0:04:11]} Qe7 {[%emt 0:10:58]} 15. a4 {[%emt 0:10:53]} Rab8 {[%emt 0:04:29]} 16. Qa2 {[%emt 0:05:11]} Kh8 {[%emt 0:01:08]} 17. Rb5 {[%emt 0:07:46]} f6 {[%emt 0:08:32]} 18. Nh4 {[%emt 0:00:49]} Bf7 {[%emt 0:00:51]} 19. Qc2 {[%emt 0:05:23]} g6 {[%emt 0:04:39]} 20. Qd2 {[%emt 0:06:37]} a6 {[%emt 0:04:47]} 21. Rb1 {[%emt 0:00:15]} Ba5 {[%emt 0:03:29]} 22. Nf3 {[%emt 0:05:30]} Nd8 {[%emt 0:06:33]} 23. Qc2 {[%emt 0:01:59]} c5 {[%emt 0:00:25]} 24. d4 {[%emt 0:03:19]} exd4 {[%emt 0:04:02]} 25. cxd4 {[%emt 0:00:10]} Nc6 {[%emt 0:02:10]} 26. dxc5 {[%emt 0:03:03]} Qxe4 {[%emt 0:01:41]} 27. Qxe4 {[%emt 0:01:01]} Rxe4 {[%emt 0:00:02]} 28. Be3 {[%emt 0:00:10]} Rxa4 {[%emt 0:03:29]} 29. Rfd1 {[%emt 0:00:09]} Be8 {[%emt 0:00:34]} 30. Rd6 {[%emt 0:03:01]} Bd8 {[%emt 0:03:20]} 31. g5 {[%emt 0:02:40]} fxg5 {[%emt 0:01:36]} 32. Nxg5 {[%emt 0:00:56]} Be7 {[%emt 0:01:03]} 33. Rdd1 {[%emt 0:00:27]} Ne5 {[%emt 0:00:57]} 34. Ne6 {[%emt 0:01:59]} Bc6+ {[%emt 0:00:23]} 35. Kg1 {[%emt 0:00:39]} Re8 {[%emt 0:01:46]} 36. Nc7 {[%emt 0:02:19]} Rd8 {[%emt 0:00:24]} 37. Rxd8+ {[%emt 0:00:49]} Bxd8 {[%emt 0:00:01]} 38. Ne6 {[%emt 0:00:16]} Bf6 {[%emt 0:00:41]} 39. Bd4 {[%emt 0:00:47]} Bd5 {[%emt 0:01:45]} 40. Rb6 {[%emt 0:00:00]} Kg8 {[%emt 0:00:00]} 41. Rd6 {[%emt 0:13:31]} Bxe6 {[%emt 0:08:49]} 42. Bxe5 {[%emt 0:00:53]} Bxe5 {[%emt 0:00:06]} 43. Rxe6 {[%emt 0:00:08]} Bd4 {[%emt 0:00:43]} 44. c6 {[%emt 0:03:07]} bxc6 {[%emt 0:00:11]} 45. Rxc6 {[%emt 0:00:07]} a5 {[%emt 0:00:14]} 46. Kg2 {[%emt 0:00:13]} Kg7 {[%emt 0:01:08]} 47. Rc4 {[%emt 0:04:20]} Ra2 {[%emt 0:08:46]} 48. Rxd4 {[%emt 0:02:24]} Rxe2 {[%emt 0:00:04]} 49. Rd7+ {[%emt 0:00:05]} Kg8 {[%emt 0:07:18]} 50. Ra7 {[%emt 0:00:14]} Re5 {[%emt 0:00:05]} 51. f4 {[%emt 0:00:23]} Rd5 {[%emt 0:02:17]} 52. Kf3 {[%emt 0:00:11]} h6 {[%emt 0:00:26]} 53. h4 {[%emt 0:00:25]} Kf8 {[%emt 0:00:15]} 54. Ke4 {[%emt 0:00:20]} Rh5 {[%emt 0:01:46]} 55. Ra8+ {[%emt 0:01:14]} Ke7 {[%emt 0:00:19]} 56. Ra7+ {[%emt 0:00:06]} Kf8 {[%emt 0:00:58]} 57. Ra8+ {[%emt 0:00:06]} Kf7 {[%emt 0:00:04]} 58. Ra7+ {[%emt 0:00:07]} Ke8 {[%emt 0:00:03]} 59. Ra6 {[%emt 0:00:37]} a4 {[%emt 0:01:52]} 60. Rxa4 {[%emt 0:01:43]} Rxh4 {[%emt 0:00:03]} 61. Ke5 {[%emt 0:00:27]} Kf7 {[%emt 0:01:21]} 62. Ra7+ {[%emt 0:00:08]} Kg8 {[%emt 0:00:05]} 63. Kf6 {[%emt 0:00:17]} Rxf4+ {[%emt 0:00:04]} 64. Kxg6 {[%emt 0:00:05]} Kf8 {[%emt 0:00:20]} 65. Kxh6 {[%emt 0:00:08]} 1/2-1/2

[Event "AUT Bundesliga 2022-23"]
[Site "Jenbach"]
[Date "2022.11.05"]
[Round "3.35"]
[White "Naiditsch, Arkadij"]
[Black "Mesaros, Florian"]
[Result "1/2-1/2"]
[ECO "C84"]
[WhiteElo "2667"]
[BlackElo "2404"]
[Annotator "ChessBase"]
[PlyCount "67"]
[EventDate "2022.11.03"]
[EventType "team-tourn"]
[EventCountry "AUT"]
[SourceTitle "playchess.com"]
[Source "ChessBase"]
[SourceQuality "1"]
[TimeControl "40/5400+30:1800+30"]

1. e4 {[%emt 0:00:05]} e5 {[%emt 0:00:09]} 2. Nf3 {[%emt 0:00:08]} Nc6 {[%emt 0:00:07]} 3. Bb5 {[%emt 0:00:10]} a6 {[%emt 0:00:05]} 4. Ba4 {[%emt 0:00:07]} Nf6 {[%emt 0:00:06]} 5. O-O {[%emt 0:00:08]} Be7 {[%emt 0:00:06]} 6. d3 {[%emt 0:00:12]} b5 {[%emt 0:00:17]} 7. Bb3 {[%emt 0:00:07]} d6 {[%emt 0:00:10]} 8. a4 {[%emt 0:00:38]} Bd7 {[%emt 0:00:55]} 9. h3 {[%emt 0:02:08]} O-O {[%emt 0:04:49]} 10. Nc3 {[%emt 0:00:15]} Rb8 {[%emt 0:04:54]} 11. axb5 {[%emt 0:04:31]} axb5 {[%emt 0:00:33]} 12. Bd2 {[%emt 0:01:51]} h6 {[%emt 0:03:51]} 13. Nd5 {[%emt 0:12:26]} Nxd5 {[%emt 0:03:07]} 14. exd5 {[%emt 0:00:51]} Nd4 {[%emt 0:00:39]} 15. Nxd4 {[%emt 0:00:08]} exd4 {[%emt 0:00:06]} 16. Ra5 {[%emt 0:00:27]} Ra8 {[%emt 0:22:22]} 17. Qa1 {[%emt 0:00:26]} Qb8 {[%emt 0:01:47]} 18. Qa3 {[%emt 0:02:14]} Qb7 {[%emt 0:02:37]} 19. Ra1 {[%emt 0:00:33]} Rxa5 {[%emt 0:01:26]} 20. Qxa5 {[%emt 0:00:07]} Rb8 {[%emt 0:12:10]} 21. Qa7 {[%emt 0:01:54]} f5 {[%emt 0:04:17]} 22. Qxd4 {[%emt 0:05:04]} Bf6 {[%emt 0:01:00]} 23. Qe3 {[%emt 0:13:52]} Bxb2 {[%emt 0:03:38]} 24. Ra7 {[%emt 0:08:47]} Qc8 {[%emt 0:00:40]} 25. c3 {[%emt 0:10:55]} Ra8 {[%emt 0:08:35]} 26. Kh2 {[%emt 0:14:35]} Ba3 {[%emt 0:04:32]} 27. Rxa8 {[%emt 0:00:41]} Qxa8 {[%emt 0:00:08]} 28. h4 {[%emt 0:00:35]} Bc5 {[%emt 0:01:40]} 29. d4 {[%emt 0:03:15]} Bb6 {[%emt 0:00:12]} 30. Kg3 {[%emt 0:04:40]} Kf8 {[%emt 0:05:01]} 31. h5 {[%emt 0:02:33]} Qa3 {[%emt 0:01:52]} 32. Bd1 {[%emt 0:00:45]} Qa1 {[%emt 0:00:30]} 33. Qf3 {[%emt 0:03:26]} Qb2 {[%emt 0:03:01]} 34. Qd3 {[%emt 0:02:54]} 1/2-1/2

[Event "AUT Bundesliga 2022-23"]
[Site "Jenbach"]
[Date "2022.11.05"]
[Round "3.36"]
[White "Freitag, Manfred"]
[Black "Bacrot, Etienne"]
[Result "0-1"]
[ECO "C02"]
[WhiteElo "2357"]
[BlackElo "2646"]
[Annotator "ChessBase"]
[PlyCount "86"]
[EventDate "2022.11.03"]
[EventType "team-tourn"]
[EventCountry "AUT"]
[SourceTitle "playchess.com"]
[Source "ChessBase"]
[SourceQuality "1"]
[TimeControl "40/5400+30:1800+30"]

1. e4 {[%emt 0:00:07]} e6 {[%emt 0:00:30]} 2. d4 {[%emt 0:00:16]} d5 {[%emt 0:00:06]} 3. e5 {[%emt 0:00:04]} c5 {[%emt 0:00:10]} 4. c3 {[%emt 0:00:02]} Nc6 {[%emt 0:00:09]} 5. Nf3 {[%emt 0:00:04]} Bd7 {[%emt 0:00:56]} 6. Be2 {[%emt 0:04:33]} f6 {[%emt 0:00:56]} 7. O-O {[%emt 0:00:41]} fxe5 {[%emt 0:00:07]} 8. Nxe5 {[%emt 0:00:03]} Nxe5 {[%emt 0:00:09]} 9. dxe5 {[%emt 0:00:04]} Qc7 {[%emt 0:00:09]} 10. Re1 {[%emt 0:03:59]} O-O-O {[%emt 0:00:10]} 11. Bf1 {[%emt 0:00:11]} Kb8 {[%emt 0:00:12]} 12. a4 {[%emt 0:00:18]} Nh6 {[%emt 0:00:10]} 13. Na3 {[%emt 0:01:49]} c4 {[%emt 0:00:21]} 14. Bg5 {[%emt 0:03:58]} Rc8 {[%emt 0:02:45]} 15. Nc2 {[%emt 0:01:37]} Nf7 {[%emt 0:07:32]} 16. Bf4 {[%emt 0:00:46]} g5 {[%emt 0:00:59]} 17. Be3 {[%emt 0:08:30]} Bg7 {[%emt 0:05:20]} 18. f4 {[%emt 0:00:22]} gxf4 {[%emt 0:01:40]} 19. Bxf4 {[%emt 0:00:11]} Rcf8 {[%emt 0:00:44]} 20. Qh5 {[%emt 0:12:32]} Nd8 {[%emt 0:08:02]} 21. Qg5 {[%emt 0:04:50]} Rhg8 {[%emt 0:10:29]} 22. Bg3 {[%emt 0:02:07]} Nc6 {[%emt 0:06:18]} 23. Qe3 {[%emt 0:00:40]} Qb6 {[%emt 0:07:58]} 24. Qxb6 {[%emt 0:44:34]} axb6 {[%emt 0:00:05]} 25. Bf2 {[%emt 0:01:00]} Kc7 {[%emt 0:04:37]} 26. Nd4 {[%emt 0:01:07]} Nxd4 {[%emt 0:02:19]} 27. Bxd4 {[%emt 0:00:09]} Ra8 {[%emt 0:00:14]} 28. b3 {[%emt 0:03:07]} cxb3 {[%emt 0:00:12]} 29. Bb5 {[%emt 0:01:19]} Bxb5 {[%emt 0:07:30]} 30. axb5 {[%emt 0:00:02]} Ra5 {[%emt 0:00:05]} 31. Reb1 {[%emt 0:00:34]} Rxb5 {[%emt 0:11:29]} 32. Ra3 {[%emt 0:00:14]} b2 {[%emt 0:00:05]} 33. Ra2 {[%emt 0:00:17]} Bf8 {[%emt 0:00:07]} 34. Raxb2 {[%emt 0:00:11]} Rxb2 {[%emt 0:00:06]} 35. Rxb2 {[%emt 0:00:03]} Bc5 {[%emt 0:00:05]} 36. Kf2 {[%emt 0:00:08]} Kc6 {[%emt 0:04:07]} 37. Ke3 {[%emt 0:01:23]} b5 {[%emt 0:00:23]} 38. Rf2 {[%emt 0:01:40]} Bxd4+ {[%emt 0:04:06]} 39. cxd4 {[%emt 0:03:18]} b4 {[%emt 0:00:07]} 40. Rf6 {[%emt 0:00:00]} Kb5 {[%emt 0:00:00]} 41. Rxe6 {[%emt 0:02:17]} b3 {[%emt 0:04:50]} 42. Re7 {[%emt 0:11:01]} b6 {[%emt 0:00:43]} 43. Rf7 {[%emt 0:11:34]} b2 {[%emt 0:01:56]} 0-1

[Event "AUT Bundesliga 2022-23"]
[Site "Jenbach"]
[Date "2022.11.06"]
[Round "4.1"]
[White "Idani, Pouya"]
[Black "Markus, Robert"]
[Result "1-0"]
[ECO "C43"]
[WhiteElo "2623"]
[BlackElo "2615"]
[Annotator "ChessBase"]
[PlyCount "61"]
[EventDate "2022.11.03"]
[EventType "team-tourn"]
[EventCountry "AUT"]
[SourceTitle "playchess.com"]
[Source "ChessBase"]
[SourceQuality "1"]
[TimeControl "40/5400+30:1800+30"]

1. e4 {[%emt 0:00:02]} e5 {[%emt 0:00:07]} 2. Nf3 {[%emt 0:00:04]} Nf6 {[%emt 0:00:09]} 3. d4 {[%emt 0:00:04]} Nxe4 {[%emt 0:00:10]} 4. Bd3 {[%emt 0:00:04]} d5 {[%emt 0:00:14]} 5. Nxe5 {[%emt 0:00:06]} Nd7 {[%emt 0:00:10]} 6. Nc3 {[%emt 0:00:05]} Nxc3 {[%emt 0:00:46]} 7. bxc3 {[%emt 0:00:05]} Bd6 {[%emt 0:00:07]} 8. O-O {[%emt 0:00:07]} O-O {[%emt 0:00:13]} 9. Bf4 {[%emt 0:00:38]} Bxe5 {[%emt 0:09:00]} 10. dxe5 {[%emt 0:00:20]} Nc5 {[%emt 0:06:52]} 11. Be3 {[%emt 0:00:08]} Nxd3 {[%emt 0:00:25]} 12. cxd3 {[%emt 0:00:05]} Re8 {[%emt 0:12:03]} 13. d4 {[%emt 0:06:40]} Bf5 {[%emt 0:11:53]} 14. Qd2 {[%emt 0:02:10]} Qd7 {[%emt 0:00:40]} 15. h3 {[%emt 0:01:19]} Qb5 {[%emt 0:06:59]} 16. Rad1 {[%emt 0:06:01]} a5 {[%emt 0:09:48]} 17. g4 {[%emt 0:01:03]} Bg6 {[%emt 0:00:10]} 18. f4 {[%emt 0:00:18]} f5 {[%emt 0:02:24]} 19. exf6 {[%emt 0:01:12]} gxf6 {[%emt 0:04:34]} 20. f5 {[%emt 0:00:09]} Bf7 {[%emt 0:00:04]} 21. Rde1 {[%emt 0:07:43]} Re4 {[%emt 0:01:02]} 22. g5 {[%emt 0:09:55]} Bh5 {[%emt 0:07:35]} 23. Qg2 {[%emt 0:08:41]} Kf7 {[%emt 0:01:11]} 24. Qg3 {[%emt 0:02:33]} Rae8 {[%emt 0:03:41]} 25. Qxc7+ {[%emt 0:04:28]} R4e7 {[%emt 0:02:23]} 26. Qg3 {[%emt 0:04:00]} Be2 {[%emt 0:10:25]} 27. gxf6 {[%emt 0:11:03]} Rg8 {[%emt 0:00:10]} 28. Qxg8+ {[%emt 0:08:35]} Kxg8 {[%emt 0:00:06]} 29. fxe7 {[%emt 0:00:02]} Bxf1 {[%emt 0:02:18]} 30. Bg5 {[%emt 0:05:08]} Be2 {[%emt 0:00:24]} 31. c4 {[%emt 0:00:05]} 1-0

[Event "AUT Bundesliga 2022-23"]
[Site "Jenbach"]
[Date "2022.11.06"]
[Round "4.2"]
[White "Horvath, Dominik"]
[Black "Janzelj, Tim"]
[Result "0-1"]
[ECO "B15"]
[WhiteElo "2505"]
[BlackElo "2456"]
[Annotator "ChessBase"]
[PlyCount "48"]
[EventDate "2022.11.03"]
[EventType "team-tourn"]
[EventCountry "AUT"]
[SourceTitle "playchess.com"]
[Source "ChessBase"]
[SourceQuality "1"]
[TimeControl "40/5400+30:1800+30"]

1. e4 {[%emt 0:00:06]} c6 {[%emt 0:00:11]} 2. d4 {[%emt 0:00:07]} d5 {[%emt 0:00:08]} 3. Nd2 {[%emt 0:01:32]} dxe4 {[%emt 0:00:12]} 4. Nxe4 {[%emt 0:00:04]} Nf6 {[%emt 0:00:13]} 5. Nxf6+ {[%emt 0:00:04]} exf6 {[%emt 0:00:06]} 6. c3 {[%emt 0:00:04]} Bd6 {[%emt 0:00:09]} 7. Bd3 {[%emt 0:00:03]} O-O {[%emt 0:00:07]} 8. Qc2 {[%emt 0:00:03]} Re8+ {[%emt 0:00:04]} 9. Be3 {[%emt 0:00:03]} h5 {[%emt 0:10:50]} 10. Nf3 {[%emt 0:00:07]} Nd7 {[%emt 0:01:51]} 11. O-O-O {[%emt 0:00:27]} Nf8 {[%emt 0:00:38]} 12. h3 {[%emt 0:00:08]} Be6 {[%emt 0:01:38]} 13. Kb1 {[%emt 0:00:28]} b5 {[%emt 0:04:09]} 14. Nh4 {[%emt 0:02:33]} Bd5 {[%emt 0:03:43]} 15. g4 {[%emt 0:09:10]} Bxh1 {[%emt 0:08:49]} 16. Rxh1 {[%emt 0:00:05]} g5 {[%emt 0:00:17]} 17. gxh5 {[%emt 0:20:53]} gxh4 {[%emt 0:27:21]} 18. Rg1+ {[%emt 0:00:04]} Kh8 {[%emt 0:00:07]} 19. Bh6 {[%emt 0:00:16]} Ne6 {[%emt 0:00:10]} 20. Bg7+ {[%emt 0:00:13]} Nxg7 {[%emt 0:00:09]} 21. Qd2 {[%emt 0:00:02]} Nf5 {[%emt 0:03:36]} 22. Bxf5 {[%emt 0:01:40]} Bf8 {[%emt 0:00:02]} 23. h6 {[%emt 0:18:31]} Qd5 {[%emt 0:02:34]} 24. Qf4 {[%emt 0:00:25]} Bd6 {[%emt 0:00:50]} 0-1

[Event "AUT Bundesliga 2022-23"]
[Site "Jenbach"]
[Date "2022.11.06"]
[Round "4.3"]
[White "Sebenik, Matej"]
[Black "Korpa, Bence"]
[Result "0-1"]
[ECO "D78"]
[WhiteElo "2518"]
[BlackElo "2496"]
[Annotator "ChessBase"]
[PlyCount "68"]
[EventDate "2022.11.03"]
[EventType "team-tourn"]
[EventCountry "AUT"]
[SourceTitle "playchess.com"]
[Source "ChessBase"]
[SourceQuality "1"]
[TimeControl "40/5400+30:1800+30"]

1. Nf3 {[%emt 0:00:06]} d5 {[%emt 0:01:36]} 2. g3 {[%emt 0:00:17]} g6 {[%emt 0:02:55]} 3. Bg2 {[%emt 0:00:26]} Bg7 {[%emt 0:00:11]} 4. d4 {[%emt 0:00:23]} Nf6 {[%emt 0:00:51]} 5. O-O {[%emt 0:00:09]} O-O {[%emt 0:00:13]} 6. c4 {[%emt 0:00:05]} c6 {[%emt 0:00:14]} 7. Nc3 {[%emt 0:03:02]} dxc4 {[%emt 0:02:02]} 8. e4 {[%emt 0:00:07]} Bg4 {[%emt 0:09:01]} 9. h3 {[%emt 0:01:47]} Bxf3 {[%emt 0:00:11]} 10. Bxf3 {[%emt 0:00:04]} e5 {[%emt 0:10:30]} 11. dxe5 {[%emt 0:01:57]} Nfd7 {[%emt 0:00:51]} 12. e6 {[%emt 0:01:36]} fxe6 {[%emt 0:01:49]} 13. Be3 {[%emt 0:00:34]} Ne5 {[%emt 0:06:38]} 14. Be2 {[%emt 0:04:01]} Nd3 {[%emt 0:00:23]} 15. Qc2 {[%emt 0:03:27]} Na6 {[%emt 0:01:30]} 16. Rad1 {[%emt 0:09:42]} Nab4 {[%emt 0:04:28]} 17. Qd2 {[%emt 0:31:57]} Bd4 {[%emt 0:00:49]} 18. Bxd3 {[%emt 0:21:10]} Nxd3 {[%emt 0:01:51]} 19. b3 {[%emt 0:01:26]} Qb6 {[%emt 0:15:40]} 20. bxc4 {[%emt 0:15:00]} Bxe3 {[%emt 0:00:20]} 21. Qxe3 {[%emt 0:00:03]} Qxe3 {[%emt 0:00:24]} 22. fxe3 {[%emt 0:00:02]} Rfd8 {[%emt 0:16:15]} 23. Ne2 {[%emt 0:02:19]} e5 {[%emt 0:03:19]} 24. Rd2 {[%emt 0:00:58]} Nc5 {[%emt 0:00:29]} 25. Rfd1 {[%emt 0:00:02]} Rxd2 {[%emt 0:00:16]} 26. Rxd2 {[%emt 0:00:03]} Kf7 {[%emt 0:00:16]} 27. Nc3 {[%emt 0:00:53]} Ke7 {[%emt 0:01:10]} 28. g4 {[%emt 0:00:16]} Rd8 {[%emt 0:02:58]} 29. Rxd8 {[%emt 0:00:33]} Kxd8 {[%emt 0:00:06]} 30. g5 {[%emt 0:00:03]} Kc7 {[%emt 0:01:27]} 31. Kg2 {[%emt 0:00:59]} Kb6 {[%emt 0:00:23]} 32. h4 {[%emt 0:00:50]} Nd3 {[%emt 0:01:47]} 33. Nb1 {[%emt 0:01:54]} Nc1 {[%emt 0:03:37]} 34. a3 {[%emt 0:00:19]} Nb3 {[%emt 0:00:27]} 0-1